fUSD/lending_fUSD_20251201
["ID","MTS","AMOUNT","RATE_DAILY","PERIOD"]
[395278071,1764580246833,-621.500001,0.00017,2]
[395278072,1764580246842,-621.500001,0.00017,2]
[395278073,1764580246852,-621.500001,0.00017,2]
[395278074,1764580246862,-151.0,0.00017,2]
[395278075,1764580246871,-151.0,0.00017,2]
[395278076,1764580246880,-460.68252,0.00017,2]
[395278077,1764580246890,-460.68252,0.00017,2]
[395278078,1764580246899,-460.68252,0.00017,2]
[395278079,1764580246909,-460.68252,0.00017,2]
[395278080,1764580246924,-275.224851,0.00017,2]
[395278081,1764580246933,-1439.996272,0.00017,2]
[395278082,1764580246945,-1439.996272,0.00017,2]
[395278083,1764580246955,-1439.996272,0.00017,2]
[395278084,1764580246966,-1439.996272,0.00017,2]
[395278085,1764580246976,-302.668681,0.00017,2]
[395278086,1764580246986,-302.668681,0.00017,2]
[395278087,1764580246996,-151.0,0.00017,2]
[395278088,1764580247007,-160.535134,0.00017,2]
[395278089,1764580247017,-302.668681,0.00017,2]
[395278090,1764580247027,-160.535134,0.00017,2]
[395278091,1764580247037,-302.668681,0.00017,2]
[395278092,1764580247332,-151.0,0.00017,2]
[395278093,1764580247342,-151.0,0.00017,2]
[395278094,1764580247351,-160.535134,0.00017,2]
[395278095,1764580247360,-151.0,0.00017,2]
[395278096,1764580247370,-160.535134,0.00017,2]
[395278097,1764580247379,-151.0,0.00017,2]
[395278098,1764580247388,-151.0,0.00017,2]
[395278099,1764580247397,-151.0,0.00017,2]
[395278100,1764580247406,-151.0,0.00017,2]
[395278101,1764580247416,-435.056707,0.00017,2]
[395278102,1764580247425,-278.957175,0.00017,2]
[395278103,1764580247434,-435.056707,0.00017,2]
[395278104,1764580247443,-278.957175,0.00017,2]
[395278105,1764580247453,-435.056707,0.00017,2]
[395278106,1764580247462,-485.559793,0.00017,2]
[395278107,1764580247471,-278.957175,0.00017,2]
[395278108,1764580247480,-435.056707,0.00017,2]
[395278109,1764580247490,-485.559793,0.00017,2]
[395278110,1764580247500,-278.957175,0.00017,2]
[395278111,1764580247509,-485.559793,0.00017,2]
[395278112,1764580247519,-485.559793,0.00017,2]
[395278113,1764580247528,-162.508623,0.00017,2]
[395278114,1764580247537,-151.0,0.00017,2]
[395278115,1764580247547,-162.508623,0.00017,2]
[395278116,1764580247556,-151.0,0.00017,2]
[395278117,1764580247565,-151.0,0.00017,2]
[395278118,1764580247574,-162.508623,0.00017,2]
[395278119,1764580247583,-548.861746,0.00017,2]
[395278120,1764580247592,-162.508623,0.00017,2]
[395278121,1764580247601,-548.861746,0.00017,2]
[395278122,1764580247613,-548.861746,0.00017,2]
[395278123,1764580247622,-151.0,0.00017,2]
[395278124,1764580247631,-420.070657,0.00017,2]
[395278125,1764580247640,-151.0,0.00017,2]
[395278126,1764580247649,-548.861746,0.00017,2]
[395278127,1764580247658,-151.0,0.00017,2]
[395278128,1764580247668,-420.070657,0.00017,2]
[395278129,1764580247677,-163.851397,0.00017,2]
[395278130,1764580247687,-420.070657,0.00017,2]
[395278131,1764580247696,-151.0,0.00017,2]
[395278132,1764580247705,-420.070657,0.00017,2]
[395278133,1764580247714,-151.0,0.00017,2]
[395278134,1764580247723,-151.0,0.00017,2]
[395278135,1764580247733,-151.0,0.00017,2]
[395278136,1764580247742,-158.702942,0.00017,2]
[395278137,1764580247751,-177.866869,0.00017,2]
[395278138,1764580247760,-158.702942,0.00017,2]
[395278139,1764580247769,-158.702942,0.00017,2]
[395278140,1764580247778,-158.702942,0.00017,2]
[395278141,1764580247788,-151.0,0.00017,2]
[395278142,1764580247797,-151.0,0.00017,2]
[395278143,1764580247806,-151.0,0.00017,2]
[395278144,1764580247815,-151.0,0.00017,2]
[395278145,1764580247825,-151.0,0.00017,2]
[395278146,1764580247834,-151.0,0.00017,2]
[395278147,1764580247843,-159.648554,0.00017,2]
[395278148,1764580247852,-151.0,0.00017,2]
[395278149,1764580247862,-151.0,0.00017,2]
[395278150,1764580247871,-151.0,0.00017,2]
[395278151,1764580247880,-158.776091,0.00017,2]
[395278152,1764580247889,-151.0,0.00017,2]
[395278153,1764580247899,-151.0,0.00017,2]
[395278154,1764580247908,-183.746173,0.00017,2]
[395278155,1764580247919,-151.0,0.00017,2]
[395278156,1764580247929,-183.746173,0.00017,2]
[395278157,1764580247938,-183.746173,0.00017,2]
[395278158,1764580247947,-183.746173,0.00017,2]
[395278159,1764580247958,-151.0,0.00017,2]
[395278160,1764580247967,-151.0,0.00017,2]
[395278161,1764580247976,-151.0,0.00017,2]
[395278162,1764580247985,-151.0,0.00017,2]
[395278163,1764580247995,-151.0,0.00017,2]
[395278164,1764580248005,-151.0,0.00017,2]
[395278165,1764580248014,-151.0,0.00017,2]
[395278166,1764580248024,-151.0,0.00017,2]
[395278167,1764580248033,-151.0,0.00017,2]
[395278168,1764580248042,-392.192637,0.00017,2]
[395278169,1764580248051,-392.192637,0.00017,2]
[395278170,1764580248061,-392.192637,0.00017,2]
[395278171,1764580248072,-1568.580143,0.00017,2]
[395278172,1764580248081,-151.0,0.00017,2]
[395278173,1764580248091,-392.192637,0.00017,2]
[395278174,1764580248100,-1568.580143,0.00017,2]
[395278175,1764580248109,-161.26213,0.00017,2]
[395278176,1764580248119,-1568.580143,0.00017,2]
[395278177,1764580248128,-151.0,0.00017,2]
[395278178,1764580248137,-1568.580143,0.00017,2]
[395278179,1764580248146,-151.0,0.00017,2]
[395278180,1764580248156,-151.0,0.00017,2]
[395278181,1764580248165,-151.0,0.00017,2]
[395278182,1764580248174,-151.0,0.00017,2]
[395278183,1764580248183,-151.0,0.00017,2]
[395278184,1764580248194,-151.0,0.00017,2]
[395278185,1764580248204,-234.28882,0.00017,2]
[395278186,1764580248214,-151.0,0.00017,2]
[395278187,1764580248223,-225.610251,0.00017,2]
[395278188,1764580248232,-225.610251,0.00017,2]
[395278189,1764580248242,-225.610251,0.00017,2]
[395278190,1764580248251,-225.610251,0.00017,2]
[395278191,1764580248260,-151.0,0.00017,2]
[395278192,1764580248272,-151.0,0.00017,2]
[395278193,1764580248281,-151.0,0.00017,2]
[395278194,1764580248291,-151.0,0.00017,2]
[395278195,1764580248300,-205.17862,0.00017,2]
[395278196,1764580248310,-295.333731,0.00017,2]
[395278197,1764580248319,-151.0,0.00017,2]
[395278198,1764580248328,-205.17862,0.00017,2]
[395278199,1764580248337,-295.333731,0.00017,2]
[395278200,1764580248347,-205.17862,0.00017,2]
[395278201,1764580248356,-295.333731,0.00017,2]
[395278202,1764580248365,-205.17862,0.00017,2]
[395278203,1764580248374,-295.333731,0.00017,2]
[395278204,1764580248383,-151.0,0.00017,2]
[395278205,1764580248393,-151.0,0.00017,2]
[395278206,1764580248402,-10000.0,0.00017026,2]
[395278207,1764580248412,-2264.0,0.00017029,2]
[395278208,1764580248422,-500.0,0.00017067,2]
[395278209,1764580248431,-1600.0,0.00017095,2]
[395278210,1764580248440,-166.66,0.00017095,2]
[395278211,1764580248449,-340.0,0.00017165,2]
[395278212,1764580248458,-500.0,0.0001726,5]
[395278213,1764580248468,-428.0,0.00017317,2]
[395278214,1764580248478,-209.437,0.0001743,2]
[395278215,1764580248487,-150.0,0.0001743,2]
[395278216,1764580248496,-150.0,0.0001743,2]
[395278217,1764580248505,-180.791,0.0001743,2]
[395278218,1764580248515,-1319.984,0.0001743,2]
[395278219,1764580248524,-3442.0,0.0001743,2]
[395278220,1764580248533,-610.0,0.0001743,2]
[395278221,1764580248542,-1603.0,0.0001743,2]
[395278222,1764580248552,-500.0,0.00017433,2]
[395278223,1764580248561,-595.37131296,0.00017444,2]
[395278224,1764580248570,-151.0,0.00017444,2]
[395278225,1764580248580,-1084.53354396,0.00017462,5]
[395278226,1764580248589,-1000.0,0.00017494,2]
[395278227,1764580248598,-1530.94789734,0.00017494,2]
[395278228,1764580248607,-307.68,0.00017518,2]
[395278229,1764580248617,-500.0,0.00017534,6]
[395278230,1764580248627,-151.0,0.00017544,2]
[395278231,1764580248636,-10887.3086039,0.00017547,2]
[395278232,1764580248645,-175.6,0.00017599,2]
[395278233,1764580248655,-166.66,0.00017624,2]
[395278234,1764580248665,-500.0,0.00017808,7]
[395278235,1764580248675,-500.0,0.00017808,2]
[395278236,1764580248685,-1473.83,0.00017863,2]
[395278237,1764580248694,-506.79919333,0.00017943,2]
[395278238,1764580248704,-500.0,0.00017945,2]
[395278239,1764580248714,-267.46074303,0.0001799,2]
[395278240,1764580248724,-151.0,0.0001799,2]
[395278241,1764580248734,-151.0,0.0001799,2]
[395278242,1764580248744,-404.82038706,0.0001799,2]
[395278243,1764580248753,-322.6107,0.0001799,2]
[395278244,1764580248763,-599.60298507,0.00017991,2]
[395278245,1764580248772,-617.40005154,0.00017992,2]
[395278246,1764580248782,-151.0,0.00017992,2]
[395278247,1764580248791,-215.0738,0.00018054,2]
[395278248,1764580248801,-5607.3213846,0.0001807,2]
[395278249,1764580248817,-500.0,0.00018082,2]
[395278250,1764580248828,-500.0,0.00018082,8]
[395278251,1764580248838,-1000.0,0.00018082,2]
[395278252,1764580248847,-450.42348546,0.00018095,2]
[395278253,1764580248857,-1000.0,0.00018109,2]
[395278254,1764580248866,-166.66,0.00018154,2]
[395278255,1764580248875,-500.0,0.00018219,2]
[395278256,1764580248885,-500.0,0.00018356,2]
[395278257,1764580248894,-150.01,0.00018356,9]
[395278258,1764580248903,-1000.0,0.000184,2]
[395278259,1764580248913,-500.0,0.00018493,2]
[395278260,1764580248927,-640.24385345,0.0001854,2]
[395278261,1764580248937,-151.0,0.0001854,2]
[395278262,1764580248947,-373.97112144,0.00018568,2]
[395278263,1764580248957,-500.0,0.0001863,2]
[395278264,1764580248966,-1600.0,0.00018649,2]
[395278265,1764580248975,-166.66,0.00018683,2]
[395278266,1764580248984,-1000.0,0.0001876,2]
[395278267,1764580248995,-500.0,0.00018767,2]
[395278268,1764580249005,-168.54,0.00018845,2]
[395278269,1764580249015,-493.88924378,0.00018904,2]
[395278270,1764580249024,-1084.53354396,0.00018906,6]
[395278271,1764580249034,-500.0,0.00018999,2]
[395278272,1764580249044,-150.61555063,0.00018999,2]
[395278273,1764580249053,-528.91,0.00018999,2]
[395278274,1764580249063,-1088.54,0.00018999,2]
[395278275,1764580249072,-923.76713922,0.00019,2]
[395278276,1764580249082,-184.21583964,0.00019,2]
[395278277,1764580249091,-25964.16861313,0.00019,2]
[395278278,1764580249101,-663.93287602,0.00019088,2]
[395278279,1764580249110,-177.12269218,0.00019088,2]
[395278280,1764580249130,-15312.2091345,0.00019154,2]
[395278281,1764580249142,-3167.3738117,0.00019162,2]
[395278282,1764580249152,-10887.3086039,0.00019172,2]
[395278283,1764580249162,-385.395818,0.00019178,2]
[395278284,1764580249172,-385.395818,0.00019178,2]
[395278285,1764580249181,-385.395818,0.00019178,2]
[395278286,1764580249191,-385.395818,0.00019178,2]
[395278287,1764580249201,-277.35679052,0.00019359,2]
[395278288,1764580249211,-151.0,0.00019359,2]
[395278289,1764580249220,-151.0,0.00019359,2]
[395278290,1764580249230,-334.5472959,0.00019359,2]
[395278291,1764580249240,-452.58,0.000194,7]
[395278292,1764580249249,-1000.0,0.000194,2]
[395278293,1764580249259,-1000.0,0.00019438,2]
[395278294,1764580249268,-3416.6156764,0.00019635,2]
[395278295,1764580249278,-688.49839244,0.00019636,2]
[395278296,1764580249287,-706.7366258,0.00019644,2]
[395278297,1764580249298,-206.85637426,0.000199,2]
[395278298,1764580249308,-1000.0,0.0001992,2]
[395278299,1764580249318,-1258.0,0.0001993,2]
[395278300,1764580249328,-4704.0,0.0001993,2]
[395278301,1764580249338,-191.196,0.0001993,2]
[395278302,1764580249348,-909.0,0.0001993,2]
[395278303,1764580249358,-1000.0,0.0002,2]
[395278304,1764580249367,-5607.3213846,0.00020045,2]
[395278305,1764580249377,-1000.0,0.00020116,2]
[395278306,1764580249388,-713.97283296,0.00020184,2]
[395278307,1764580249398,-963.77,0.00020187,2]
[395278308,1764580249408,-641.751,0.0002043,2]
[395278309,1764580249419,-190.94,0.00020548,2]
[395278310,1764580249428,-663.858893,0.00020548,2]
[395278311,1764580249438,-663.858893,0.00020548,2]
[395278312,1764580249448,-663.858893,0.00020548,2]
[395278313,1764580249458,-663.858893,0.00020548,2]
[395278314,1764580249468,-1000.0,0.000206,2]
[395278315,1764580249479,-287.61899177,0.00020728,2]
[395278316,1764580249488,-151.0,0.00020728,2]
[395278317,1764580249498,-151.0,0.00020728,2]
[395278318,1764580249507,-346.92554585,0.00020728,2]
[395278319,1764580249517,-621.78829552,0.0002073,2]
[395278320,1764580249527,-740.38982778,0.00020732,2]
[395278321,1764580249536,-2000.0,0.00020732,2]
[395278322,1764580249547,-200.0,0.00020732,2]
[395278323,1764580249556,-506.79919333,0.00020735,2]
[395278324,1764580249565,-223.0315306,0.00020793,2]
[395278325,1764580249575,-1000.0,0.00020795,2]
[395278326,1764580249584,-10887.3086039,0.00020797,2]
[395278327,1764580249593,-450.42348546,0.00020856,2]
[395278328,1764580249603,-767.7842514,0.0002128,2]
[395278329,1764580249612,-1000.0,0.00021731,2]
[395278330,1764580249622,-500.0,0.00021732,2]
[395278331,1764580249757,-500.0,0.00021762,2]
[395278332,1764580249766,-1000.0,0.000218,2]
[395278333,1764580249775,-796.19226871,0.00021828,2]
[395278334,1764580249785,-151.0,0.00021918,2]
[395278335,1764580249795,-5000.0,0.00021918,2]
[395278336,1764580249818,-150.0,0.00021918,2]
[395278337,1764580249828,-1805.08,0.00022,7]
[395278338,1764580249839,-5607.3213846,0.00022021,2]
[395278339,1764580249848,-150.0,0.00022055,2]
[395278340,1764580249857,-298.26089446,0.00022097,2]
[395278341,1764580249867,-151.0,0.00022097,2]
[395278342,1764580249876,-151.0,0.00022097,2]
[395278343,1764580249887,-359.76179104,0.00022097,2]
[395278344,1764580249896,-203.55913759,0.00022192,2]
[395278345,1764580249905,-176.19148578,0.00022365,2]
[395278346,1764580249915,-825.65138265,0.00022376,2]
[395278347,1764580249929,-1000.0,0.000224,2]
[395278348,1764580249939,-10887.3086039,0.00022422,2]
[395278349,1764580249948,-156.16,0.00022621,2]
[395278350,1764580249959,-302.43,0.00022621,2]
[395278351,1764580249968,-150.0,0.00022621,2]
[395278352,1764580249978,-11342.96089445,0.00022828,2]
[395278353,1764580249987,-206.85637426,0.000229,2]
[395278354,1764580249997,-4704.0,0.0002293,2]
[395278355,1764580250007,-909.0,0.0002293,2]
[395278356,1764580250016,-1000.0,0.00023,2]
[395278357,1764580250028,-165.0,0.00023,7]
[395278358,1764580250037,-309.29654756,0.00023466,2]
[395278359,1764580250047,-151.0,0.00023466,2]
[395278360,1764580250058,-151.0,0.00023466,2]
[395278361,1764580250068,-373.07297731,0.00023466,2]
[395278362,1764580250078,-644.79446246,0.00023469,2]
[395278363,1764580250088,-506.79919333,0.00023526,2]
[395278364,1764580250097,-231.28369723,0.00023532,2]
[395278365,1764580250106,-2092.314224,0.00023559,2]
[395278366,1764580250116,-1000.0,0.000236,2]
[395278367,1764580250125,-450.42348546,0.00023617,2]
[395278368,1764580250135,-208.01966253,0.00023651,2]
[395278369,1764580250144,-302.35220506,0.00023691,2]
[395278370,1764580250153,-1805.08,0.000237,7]
[395278371,1764580250162,-2000.0,0.00023799,2]
[395278372,1764580250171,-250.0,0.00023899,2]
[395278373,1764580250181,-5607.3213846,0.00023997,2]
[395278374,1764580250191,-150.0,0.00024,2]
[395278375,1764580250202,-10887.3086039,0.00024046,2]
[395278376,1764580250216,-166.0,0.00024164,7]
[395278377,1764580250226,-1000.0,0.000242,2]
[395278378,1764580250236,-1213.78,0.00024281,2]
[395278379,1764580250246,-1213.78,0.00024281,2]
[395278380,1764580250255,-5491.65035635,0.00024303,2]
[395278381,1764580250264,-1088.14412724,0.000244,2]
[395278382,1764580250273,-200.0,0.000246,2]
[395278383,1764580250282,-502.76482705,0.00024657,2]
[395278384,1764580250291,-1000.0,0.00024658,2]
[395278385,1764580250300,-191.69,0.00024658,2]
[395278386,1764580250310,-500.0,0.00024799,2]
[395278387,1764580250319,-1473.83,0.00024799,2]
[395278388,1764580250328,-590.16,0.00024799,2]
[395278389,1764580250338,-500.0,0.00024799,2]
[395278390,1764580250347,-8838.98211336,0.000248,3]
[395278391,1764580250356,-1000.0,0.000248,2]
[395278392,1764580250365,-320.74051982,0.00024835,2]
[395278393,1764580250374,-151.0,0.00024835,2]
[395278394,1764580250383,-151.0,0.00024835,2]
[395278395,1764580250392,-386.87667747,0.00024835,2]
[395278396,1764580250401,-500.0,0.00024899,5]
[395278397,1764580250410,-500.0,0.00024899,5]
[395278398,1764580250419,-500.0,0.00024899,5]
[395278399,1764580250428,-500.0,0.00024899,5]
[395278400,1764580250437,-230.80853104,0.000249,2]
[395278401,1764580250446,-242.62393291,0.00024937,2]
[395278402,1764580250455,-1287.42138508,0.0002499,2]
[395278403,1764580250464,-151.0,0.00024997,7]
[395278404,1764580250473,-151.0,0.00024997,7]
[395278405,1764580250484,-1473.83,0.00024998,2]
[395278406,1764580250493,-1231.98120029,0.00024999,10]
[395278407,1764580250502,-500.0,0.00024999,2]
[395278408,1764580250510,-500.0,0.00024999,2]
[395278409,1764580250519,-1473.83,0.00024999,2]
[395278410,1764580250528,-1473.83,0.00024999,2]
[395278411,1764580250537,-500.0,0.00024999,2]
[395278412,1764580250546,-510.9486006,0.00024999,2]
[395278413,1764580250557,-528.91,0.00024999,2]
[395278414,1764580250567,-528.91,0.00024999,2]
[395278415,1764580250577,-1088.54,0.00024999,2]
[395278416,1764580250586,-1088.54,0.00024999,2]
[395278417,1764580250595,-150.0,0.00025,2]
[395278418,1764580250604,-806.0,0.00025,2]
[395278419,1764580250613,-151.0,0.00025,2]
[395278420,1764580250622,-465480.36342308,0.00025,2]
[395278421,1764580250631,-1768.57,0.00025,7]
[395278422,1764580250641,-322.0,0.00025,30]
[395278423,1764580250650,-151.0,0.00025,7]
[395278424,1764580250659,-156.66264,0.00025,7]
[395278425,1764580250668,-151.0,0.00025,7]
[395278426,1764580250677,-151.0,0.00025,7]
[395278427,1764580250686,-166.972036,0.00025,7]
[395278428,1764580250695,-151.0,0.00025,7]
[395278429,1764580250703,-151.0,0.00025,7]
[395278430,1764580250712,-151.0,0.00025,7]
[395278431,1764580250721,-169.058897,0.00025,7]
[395278432,1764580250730,-151.0,0.00025,7]
[395278433,1764580250739,-151.0,0.00025,7]
[395278434,1764580250750,-151.945293,0.00025,7]
[395278435,1764580250759,-153.691112,0.00025,7]
[395278436,1764580250768,-151.0,0.00025,7]
[395278437,1764580250778,-151.0,0.00025,7]
[395278438,1764580250788,-151.859396,0.00025,7]
[395278439,1764580250797,-151.0,0.00025,7]
[395278440,1764580250806,-151.0,0.00025,7]
[395278441,1764580250815,-182.0,0.00025,7]
[395278442,1764580250824,-151.0,0.00025,7]
[395278443,1764580250833,-151.0,0.00025,7]
[395278444,1764580250842,-151.0,0.00025,7]
[395278445,1764580250852,-151.0,0.00025,7]
[395278446,1764580250861,-151.0,0.00025,7]
[395278447,1764580250870,-151.0,0.00025,7]
[395278448,1764580250879,-151.0,0.00025,7]
[395278449,1764580250888,-151.0,0.00025,7]
[395278450,1764580250898,-151.0,0.00025,7]
[395278451,1764580250907,-151.0,0.00025,7]
[395278452,1764580250921,-301.414308,0.00025,7]
[395278453,1764580250930,-301.414308,0.00025,7]
[395278454,1764580250939,-301.414308,0.00025,7]
[395278455,1764580250948,-301.414308,0.00025,7]
[395278456,1764580250958,-400.73788,0.00025,7]
[395278457,1764580250967,-151.0,0.00025,7]
[395278458,1764580250976,-400.73788,0.00025,7]
[395278459,1764580250986,-151.0,0.00025,7]
[395278460,1764580250995,-400.73788,0.00025,7]
[395278461,1764580251005,-400.73788,0.00025,7]
[395278462,1764580251014,-151.0,0.00025,7]
[395278463,1764580251023,-151.0,0.00025,7]
[395278464,1764580251032,-151.0,0.00025,7]
[395278465,1764580251042,-151.0,0.00025,7]
[395278466,1764580251051,-151.0,0.00025,7]
[395278467,1764580251060,-151.0,0.00025,7]
[395278468,1764580251070,-151.0,0.00025,7]
[395278469,1764580251079,-151.0,0.00025,7]
[395278470,1764580251089,-151.0,0.00025,7]
[395278471,1764580251098,-151.0,0.00025,7]
[395278472,1764580251108,-151.0,0.00025,7]
[395278473,1764580251117,-621.500001,0.00025,7]
[395278474,1764580251126,-621.500001,0.00025,7]
[395278475,1764580251135,-621.500001,0.00025,7]
[395278476,1764580251145,-621.500001,0.00025,7]
[395278477,1764580251155,-151.0,0.00025,7]
[395278478,1764580251164,-151.0,0.00025,7]
[395278479,1764580251174,-460.68252,0.00025,7]
[395278480,1764580251184,-460.68252,0.00025,7]
[395278481,1764580251193,-460.68252,0.00025,7]
[395278482,1764580251202,-460.68252,0.00025,7]
[395278483,1764580251211,-1439.996272,0.00025,7]
[395278484,1764580251220,-1439.996272,0.00025,7]
[395278485,1764580251230,-1439.996272,0.00025,7]
[395278486,1764580251239,-1439.996272,0.00025,7]
[395278487,1764580251249,-302.668681,0.00025,7]
[395278488,1764580251258,-302.668681,0.00025,7]
[395278489,1764580251267,-151.0,0.00025,7]
[395278490,1764580251276,-160.535134,0.00025,7]
[395278491,1764580251286,-302.668681,0.00025,7]
[395278492,1764580251295,-160.535134,0.00025,7]
[395278493,1764580251306,-302.668681,0.00025,7]
[395278494,1764580251316,-151.0,0.00025,7]
[395278495,1764580251325,-151.0,0.00025,7]
[395278496,1764580251335,-160.535134,0.00025,7]
[395278497,1764580251343,-247.908092,0.00025,7]
[395278498,1764580251354,-160.535134,0.00025,7]
[395278499,1764580251363,-151.0,0.00025,7]
[395278500,1764580251372,-151.0,0.00025,7]
[395278501,1764580251383,-151.0,0.00025,7]
[395278502,1764580251395,-151.0,0.00025,7]
[395278503,1764580251404,-663.858893,0.00025,7]
[395278504,1764580251413,-663.858893,0.00025,7]
[395278505,1764580251422,-663.858893,0.00025,7]
[395278506,1764580251431,-663.858893,0.00025,7]
[395278507,1764580251441,-435.056707,0.00025,7]
[395278508,1764580251450,-278.957175,0.00025,7]
[395278509,1764580251460,-435.056707,0.00025,7]
[395278510,1764580251469,-278.957175,0.00025,7]
[395278511,1764580251478,-435.056707,0.00025,7]
[395278512,1764580251488,-485.559793,0.00025,7]
[395278513,1764580251497,-278.957175,0.00025,7]
[395278514,1764580251506,-435.056707,0.00025,7]
[395278515,1764580251516,-485.559793,0.00025,7]
[395278516,1764580251525,-278.957175,0.00025,7]
[395278517,1764580251535,-485.559793,0.00025,7]
[395278518,1764580251544,-485.559793,0.00025,7]
[395278519,1764580251555,-162.508623,0.00025,7]
[395278520,1764580251564,-151.0,0.00025,7]
[395278521,1764580251573,-162.508623,0.00025,7]
[395278522,1764580251583,-151.0,0.00025,7]
[395278523,1764580251593,-151.0,0.00025,7]
[395278524,1764580251603,-162.508623,0.00025,7]
[395278525,1764580251612,-548.861746,0.00025,7]
[395278526,1764580251621,-162.508623,0.00025,7]
[395278527,1764580251631,-548.861746,0.00025,7]
[395278528,1764580251640,-548.861746,0.00025,7]
[395278529,1764580251650,-151.0,0.00025,7]
[395278530,1764580251659,-420.070657,0.00025,7]
[395278531,1764580251668,-151.0,0.00025,7]
[395278532,1764580251677,-548.861746,0.00025,7]
[395278533,1764580251686,-151.0,0.00025,7]
[395278534,1764580251695,-420.070657,0.00025,7]
[395278535,1764580251705,-420.070657,0.00025,7]
[395278536,1764580251717,-151.0,0.00025,7]
[395278537,1764580251727,-420.070657,0.00025,7]
[395278538,1764580251736,-151.0,0.00025,7]
[395278539,1764580251745,-151.0,0.00025,7]
[395278540,1764580251754,-151.0,0.00025,7]
[395278541,1764580251763,-158.702942,0.00025,7]
[395278542,1764580251772,-158.702942,0.00025,7]
[395278543,1764580251782,-158.702942,0.00025,7]
[395278544,1764580251792,-158.702942,0.00025,7]
[395278545,1764580251802,-151.0,0.00025,7]
[395278546,1764580251812,-151.0,0.00025,7]
[395278547,1764580251821,-151.0,0.00025,7]
[395278548,1764580251831,-151.0,0.00025,7]
[395278549,1764580251840,-151.0,0.00025,7]
[395278550,1764580251849,-151.0,0.00025,7]
[395278551,1764580251859,-151.0,0.00025,7]
[395278552,1764580251868,-151.0,0.00025,7]
[395278553,1764580251877,-151.0,0.00025,7]
[395278554,1764580251887,-151.0,0.00025,7]
[395278555,1764580251897,-151.0,0.00025,7]
[395278556,1764580251906,-183.746173,0.00025,7]
[395278557,1764580251918,-151.0,0.00025,7]
[395278558,1764580251928,-183.746173,0.00025,7]
[395278559,1764580251937,-183.746173,0.00025,7]
[395278560,1764580251947,-183.746173,0.00025,7]
[395278561,1764580251956,-151.0,0.00025,7]
[395278562,1764580251966,-151.0,0.00025,7]
[395278563,1764580251976,-151.0,0.00025,7]
[395278564,1764580251985,-151.0,0.00025,7]
[395278565,1764580251995,-151.0,0.00025,7]
[395278566,1764580252006,-272.766762,0.00025,7]
[395278567,1764580252015,-205.090339,0.00025,7]
[395278568,1764580252025,-151.0,0.00025,7]
[395278569,1764580252034,-392.192637,0.00025,7]
[395278570,1764580252043,-392.192637,0.00025,7]